Cogmind - Beta 13 @@@ ROGUE MODE // 2024.05.28 @ 00:38:41 Player: Heliostats Result: Destroyed by 1T-BXL(R) with Subdweller Laser Performance ------------- Evolutions (0) 0 Regions Visited (2) 400 Robots Destroyed (28) 140 Value Destroyed (633) 633 Prototype IDs (3) 60 Alien Tech Used (0) 0 Bonus (0) 0 TOTAL SCORE: 1233 Bonus ------- None Cogmind --------- Core Integrity 0/250 Matter 186/300 Energy 120/125 System Corruption 0% Temperature Cool (18) Movement Hovering (60) Location -10/Subcaves Parts ------- > --- POWER (1) -------- Light Ion Engine > --- PROPULSION (2) --- Hover Unit > --- UTILITY (2) ------ Weight Redist. System Seismic Detector > --- WEAPON (2) ------- Improved Light Cannon Battle Cannon > --- INVENTORY (5) ---- Hover Unit Makeshift Flight Unit Hacking Suite Light Assault Rifle Grenade Launcher Peak State ------------ > --- POWER ------------ Light Ion Engine > --- PROPULSION ------- Hover Unit Hover Unit > --- UTILITY ---------- Weight Redist. System Seismic Detector > --- WEAPON ----------- Improved Light Cannon Battle Cannon > --- INVENTORY -------- Hover Unit Makeshift Flight Unit Hacking Suite Light Assault Rifle Grenade Launcher [Rating: 11] Favorites ----------- Power Ion Engine Engine Ion Engine Propulsion Light Treads Treads Light Treads Hover Unit Hover Unit Utility Seismic Detector Device Seismic Detector Weapon Heavy EM Pulse Gun Energy Gun Heavy EM Pulse Gun Ballistic Gun Light Assault Rifle Ballistic Cannon Improved Light Cannon Build | -11 -10 -10 ------- Run | Yrd Mat Sub Slots Evolved . | . . . Power . | . . . Propulsion . | . . . Utility . | . . . Weapon . | . . . Parts Attached 23 | 6 15 2 Power 3 | 1 1 1 Engine 3 | 1 1 1 Core . | . . . Reactor . | . . . Propulsion 4 | 2 2 . Treads 2 | 2 . . Leg . | . . . Wheel . | . . . Hover 2 | . 2 . Flight . | . . . Utility 3 | 1 2 . Device 3 | 1 2 . Storage . | . . . Processor . | . . . Hackware . | . . . Protection . | . . . Artifact . | . . . Weapon 13 | 2 10 1 Energy Gun 7 | 2 5 . Energy Cannon . | . . . Ballistic Gun 1 | . 1 . Ballistic Cannon 5 | . 4 1 Launcher . | . . . Special Weapon . | . . . Impact Weapon . | . . . Slashing Weapon . | . . . Piercing Weapon . | . . . Special Melee Weapon . | . . . Unidentified Prototypes . | . . . Parts Lost 6 | . 5 1 Power 1 | . 1 . Propulsion 3 | . 2 1 Utility 1 | . 1 . Weapon 1 | . 1 . Highest Loss Streak 2 | . 2 1 To Critical Strikes . | . . . Average Slot Usage (%) 84 | . 82 100 Engine 13 | . 13 14 Treads 8 | . 9 . Hover 9 | . 7 28 Device 23 | . 23 28 Energy Gun 17 | . 19 . Ballistic Cannon 8 | . 6 28 Naked Turns . | . . . Heaviest Build 15 | 7 15 14 Greatest Support 40 | 40 40 18 Greatest Overweight (x) 4 | . 4 . Average Overweight (x) . | . 1 . Largest Inventory Capacity 5 | 5 5 5 Average Capacity 5 | 5 5 5 Most Carried 5 | 5 5 5 Average Carried 2 | 1 2 4 Final Capacity 5 | 5 5 5 Final Carried 5 | 2 5 5 Class Distribution -------------------- 100% | Mutant Dominant Class ---------------- Mutant | -10/Materials Mutant | -10/Subcaves Resources | -11 -10 -10 ----------- Run | Yrd Mat Sub Matter Collected 545 | 248 260 37 Remotely . | . . . Salvage Created 941 | 69 872 . Parts 56 | 4 52 . Haulers Intercepted 1 | . 1 . Recyclers Shooed 3 | . 3 . Parts Field Recycled . | . . . Retrieved Matter . | . . . Parts Self-Destructed 1 | . . 1 Prevented . | . . . Kills | -11 -10 -10 ------- Run | Yrd Mat Sub Combat Hostiles Destroyed 15 | . 15 . Guns 7 | . 7 . Cannons 5 | . 5 . AOE 2 | . 2 . Classes Destroyed 8 | 2 6 . Worker 2 | . 2 . Tunneler 1 | 1 . . Hauler 1 | . 1 . Recycler 3 | 1 2 . Operator 3 | . 3 . Watcher 3 | . 3 . Swarmer 2 | . 2 . Grunt 13 | . 13 . Best Kill Streak 4 | 1 4 . Combat Bots Only 4 | . 4 . Max Kills in Single Turn 2 | 1 2 . Gunslinging . | . . . Exploded 1 | . 1 . Melee . | . . . Uniques/NPCs Destroyed . | . . . Combat | -11 -10 -10 -------- Run | Yrd Mat Sub Hostile Shots Fired 107 | . 83 24 Missed 33 | . 23 10 Damage Taken 1154 | . 846 308 Core 272 | . 167 105 Absorbed by Shields . | . . . Core Remaining (%) 100 | 100 . . Volleys Fired 89 | 7 73 9 Largest 2 | 2 2 2 Hottest 100 | 90 100 78 Shots Fired 177 | 14 145 18 Gun 119 | 14 105 . Cannon 58 | . 40 18 Launcher . | . . . Special . | . . . Kinetic 61 | . 43 18 Thermal 68 | 14 54 . Explosive . | . . . Electromagnetic 48 | . 48 . Robot Hit Streak 11 | 4 8 11 Robot Miss Streak 4 | 2 4 2 Penetration Max . | . . . Secondary Targets 1 | . 1 . Max Gunslinging Chain 1 | . 1 . Shots Hit Robots 93 | 8 72 13 Core Hits 37 | 3 32 2 Critical Kills . | . . . Critical Parts Destroyed . | . . . Critical Strikes 5 | . 4 1 Burn 1 | . 1 . Blast 2 | . 1 1 Corrupt 2 | . 2 . Melee Attacks . | . . . Impact . | . . . Slashing . | . . . Piercing . | . . . Sneak Attacks . | . . . Combat Hostiles . | . . . Follow-up Attacks . | . . . Damage Inflicted 1712 | 94 1325 293 Guns 927 | 94 833 . Cannons 606 | . 313 293 Explosions 172 | . 172 . Melee . | . . . Ramming 7 | . 7 . Kinetic 615 | . 322 293 Thermal 683 | 94 589 . Explosive . | . . . Electromagnetic 407 | . 407 . Impact . | . . . Slashing . | . . . Piercing . | . . . Highest Corruption . | . . . Average Corruption . | . . . Corruption Purged . | . . . Corruption Blocked . | . . . Overload Shots . | . . . Overflow Damage 37 | . 37 . Projectiles . | . . . Explosions 37 | . 37 . Melee . | . . . Knockbacks 5 | . 4 1 Impact . | . . . Kinetic 5 | . 4 1 Secondary . | . . . Self-Inflicted Damage 110 | . 110 . Shots 2 | . 2 . Rammed 1 | . 1 . Targets Rammed 1 | . 1 . Kicked . | . . . Crushed . | . . . Highest Temperature 280 | 90 280 3 Average Temperature 94 | 38 100 3 Received Heat Transfer 498 | . 408 90 Effects 1 | . 1 . Energy Bleed 1 | . 1 . Siege Activations . | . . . Robots Corrupted . | . . . Combat Hostiles . | . . . Parts Fried . | . . . Impact Corruptions . | . . . Robots Melted 1 | . 1 . Combat Hostiles 1 | . 1 . Parts Melted 1 | . 1 . Heat Transferred 1696 | 260 1436 . Parts Sabotaged . | . . . Parts Stolen . | . . . Parts Stripped . | . . . Power Chain Reactions 3 | . 3 . Alert | -11 -10 -10 ------- Run | Yrd Mat Sub Peak Influence 193 | 10 193 . Initial 6 | . 6 . Average 70 | 3 76 . Maximum Alert Level . | . . . Low Security (%) 100 | 100 100 . Level 1 . | . . . Level 2 . | . . . Level 3 . | . . . Level 4 . | . . . Level 5 . | . . . High Security . | . . . Max Security . | . . . Squads Dispatched 3 | . 3 . Investigation 1 | . 1 . Extermination . | . . . Reinforcement 2 | . 2 . Assault . | . . . Garrison . | . . . Intercept . | . . . Searches Triggered . | . . . Construction Impeded . | . . . Haulers Reinforced . | . . . Active Scanning Responses . | . . . Cargo Convoy Interrupts . | . . . Stealth | -11 -10 -10 --------- Run | Yrd Mat Sub Distress Signals 1 | . 1 . Communications Jammed . | . . . Distress Signals . | . . . Times Spotted 29 | . 25 4 Peak Tracking Total 4 | . 2 4 Tactical Retreats . | . . . Traps | -11 -10 -10 ------- Run | Yrd Mat Sub Traps Triggered 1 | . 1 . Indirectly . | . . . Trap Hack Attempts . | . . . Triggered . | . . . Disarmed . | . . . Reprogrammed . | . . . Reused . | . . . Traps Extracted . | . . . Installed . | . . . Triggered . | . . . Machines | -11 -10 -10 ---------- Run | Yrd Mat Sub Machines Disabled 2 | . 2 . Max in Single Turn 1 | . 1 . Machines Repaired . | . . . Machines Dismantled . | . . . Machines Sabotaged . | . . . Overloaded Fab Kills . | . . . Hacking | -11 -10 -10 --------- Run | Yrd Mat Sub Machines Accessed 5 | . 5 . Terminals 4 | . 4 . Fabricators . | . . . Repair Stations . | . . . Recycling Units 1 | . 1 . Scanalyzers . | . . . Garrison Access . | . . . Total Hacks 15 | . 15 . Successful 6 | . 6 . Failed 9 | . 9 . Catastrophic 1 | . 1 . Database Lockouts . | . . . Manual 2 | . 2 . Terminals 13 | . 13 . Fabricators . | . . . Repair Stations . | . . . Recycling Units 2 | . 2 . Scanalyzers . | . . . Garrison Access . | . . . Terminal Hacks 5 | . 5 . Prototype ID Bank 1 | . 1 . Unreport Threat 2 | . 2 . Dispatch Records 1 | . 1 . Hauler Manifests 1 | . 1 . Fabricator Hacks . | . . . Repair Station Hacks . | . . . Recycling Unit Hacks 1 | . 1 . Report Inventory 1 | . 1 . Scanalyzer . | . . . Garrison Access Hacks . | . . . Unauthorized Hacks . | . . . Terminals . | . . . Fabricators . | . . . Repair Stations . | . . . Recycling Units . | . . . Scanalyzers . | . . . Garrison Access . | . . . Data Cores Recovered 2 | . 2 . Used 1 | . 1 . Hacking Detections 2 | . 2 . Full Trace Events 1 | . 1 . Feedback Events . | . . . Feedback Blocked . | . . . Robot Schematics Acquired . | . . . Robots Built . | . . . Authchips . | . . . Time . | . . . Total Robot Build Rating . | . . . Part Schematics Acquired . | . . . Parts Built . | . . . Authchips . | . . . Time . | . . . Total Part Build Rating . | . . . Parts Repaired . | . . . Time . | . . . Parts Recycled . | . . . Recycled Matter . | . . . Retrieved Matter . | . . . Retrieved Components . | . . . Parts Scanalyzed . | . . . Part Schematics Acquired . | . . . Parts Damaged . | . . . Bothacking | -11 -10 -10 ------------ Run | Yrd Mat Sub Used RIF Installer . | . . . Robots Hacked . | . . . Non-combat . | . . . Combat . | . . . Robot Hacks Applied . | . . . Relay Couplers Released . | . . . Fabnet Peak Effective % . | . . . Robots Rewired . | . . . Allies Hacked . | . . . Hacks Repelled . | . . . Allies | -11 -10 -10 -------- Run | Yrd Mat Sub Total Allies . | . . . Largest Group . | . . . Highest-Rated Group . | . . . Highest-Rated Ally . | . . . Total Orders . | . . . Ally Attacks . | . . . Total Damage . | . . . Kills . | . . . Allies Corrupted . | . . . Allies Melted . | . . . Intel | -11 -10 -10 ------- Run | Yrd Mat Sub Robot Analysis Total . | . . . Derelict Logs Recovered 1 | . . 1 Drone Launches . | . . . Drone Recoveries . | . . . Exploration | -11 -10 -10 ------------- Run | Yrd Mat Sub Turns Passed 1851 | 124 1557 170 Spaces Moved 1086 | 70 765 251 Core 218 | 21 197 . Treads 232 | 49 183 . Legs . | . . . Wheels . | . . . Hover 636 | . 385 251 Flight . | . . . Fastest Speed 50 | 50 56 56 Average Speed 113 | 127 130 56 Slowest Speed 250 | 160 250 56 Overloaded Moves . | . . . Propulsion Burnouts . | . . . Robots Hopped . | . . . Cave-ins Triggered . | . . . Exploration Rate (%) 42 | 5 95 26 Regions Visited 2 Branch Regions 1 Pre-discovered Areas 2 | . . 2 Known Exits Taken . | . . . Unknown Exits Taken 2 | 1 1 . Scrap Searched 1 | . . 1 Spaces Dug . | . . . Terrain Destroyed 54 | . 54 . Melee . | . . . Projectile 1 | . 1 . AOE 53 | . 53 . Terrain Rammed . | . . . Walls Destroyed . | . . . Machines Disabled . | . . . Actions | -11 -10 -10 --------- Run | Yrd Mat Sub Total 1533 | 92 1176 265 Wait 301 | . 301 . Move 1084 | 69 764 251 Hop . | . . . Pick Up 24 | 9 14 1 Fast Attach 2 | . 2 . Attach 17 | 6 11 . Detach 1 | . 1 . Swap 4 | . 2 2 Drop 10 | 1 7 2 Fire 89 | 7 73 9 Melee . | . . . Ram . | . . . Kick . | . . . Crush 1 | . 1 . Escape Stasis . | . . . Rewire . | . . . Trap . | . . . Miscellaneous . | . . . Route ------- -11/Scrapyard -10/Materials (discovered 6 exits: [*Mat x3] / [*Min x2] / [*Sub]) -10/Subcaves History --------- Turn | Location | Event 10 | -11/Scrapyard | Discovered new exit (range 16) 125 | -11/Scrapyard | Entered Materials 325 | -10/Materials | Build established: Mutant 714 | -10/Materials | Discovered new exit (range 5) 1091 | -10/Materials | Discovered new exit (range 5) 1203 | -10/Materials | Core integrity fell below 50% 1287 | -10/Materials | Discovered new exit (range 9) 1287 | -10/Materials | Discovered new exit (range 14) 1350 | -10/Materials | Discovered new exit (range 16) 1676 | -10/Materials | Discovered new exit (range 6) 1682 | -10/Materials | Entered Subcaves 1736 | -10/Subcaves | Learned location of Zion (-7) 1736 | -10/Subcaves | Met a Zionite searching for "candidates" 1746 | -10/Subcaves | Shifting Twisted Machinery released Battle Cannon 1841 | -10/Subcaves | Ambushed by Subdwellers from Twisted Machinery 1845 | -10/Subcaves | Core integrity fell below 20% 1852 | -10/Subcaves | Destroyed by 1T-BXL(R) with Subdweller Laser Last Messages --------------- dangerous down here, I feel that you could die at any moment. For your health and safety might I suggest a trip to Zion?" World map updated: -7/Zion. Battle Cannon falls loose from the Twisted Machinery. 01749_ Dropped Imp. Light Cannon. 01775_ Acquired 7 matter. 01787_ Acquired derelict log, extracted data. World map updated: -10/Materials. 01792_ Acquired 7 matter. 01816_ Searching scrap... 01816_ Found Mak. Flight Unit. 01816_ Found 23 Matter. 01817_ Acquired 23 matter. 01822_ Dropped Ion Engine. 01823_ Acquired Mak. Flight Unit. 01832_ E5-5FL(R) Sub. Optics blasted off. 01849_ 1T-BXL(R) knocked back. 01851_ Hover Unit destroyed. Map ----- +----------------------------------------------------+ | ?????????????????????????????????????????????????? | | ?????????????????????????????????????????????????? | | ?????????????????????????????????????????????????? | | ?????????????????????????????????????????????????? | | ?????????????????????????????????????????????????? | | ?????????????????????????????????????????????????? | | ?????????????????????" ??????????????????????????? | | ##??????????????????? ??????????????????????????? | | #?????????????????? ???## #???????????????????? | | ##??????????????????# "###" #???????????????????? | | #??????????????????? " " #???????????????????? | | ##????????????????????" ""#????????????????????? | | #????????????????????#""""#???###???????????????? | | #????????????????????#"""R#??# #???????????????? | | ##????????????????????# R ### #???????????????? | | ##????????????????????# ##??????????????? | | ##?????## ???????????#% #??????????????? | | "##???## ????????### #??????????????? | | ##?? ????????# #??????????????? | | #???# ???????# #??????????????? | | ##???# ######?## #??????????????? | | ##??# ##?## ## ##??????????????? | | " ##??# % #### ;#?# ##???????????????? | | "" ##### ## ##??###????????????????? | | " #?# % #* #??????????????????????? | | "" ##?# %!R @#??????????????????????? | | " " #?## #??????????????????????? | | " #??## % #??????????????????????? | | " " ##########R ## ##??????????????????????? | | #" ##???# # ### "#???????????????????????? | | # #???## % #?##"" ??????????????????????? | | ##?## ####??## ""????????????????????? | | ### ####??????## ""????????????????????? | | #??????????? ##????????????????????? | | ## #?????????? #?????????????????????? | | #### #?????????# #?????????????????????? | | # ##??#####?????????? #?????????????????????? | | # ## ?????????????????????????????????????????? | | ?# #?????????????????????????????????????????? | | ?# ?????????????????????????????????????????? | | ? ?????????????????????????????????????????? | | # ? % ?????????????????????????????????????????? | | # ? ?????????????????????????????????????????? | | ## ##?????????????????????????????????????????? | | ??####???????????????????????????????????????????? | | ?????????????????????????????????????????????????? | | ?????????????????????????????????????????????????? | | ?????????????????????????????????????????????????? | | ?????????????????????????????????????????????????? | | ?????????????????????????????????????????????????? | +----------------------------------------------------+ Best States ------------- Heat Dissipation 25 Energy Generation 10 Energy Capacity 250 Matter Stores 300 Matter Capacity 300 Sight Range 16 Robot Scan Range 14 Terrain Scan Density 10 Additional Mass Support 6 Evasion (%) 53 Recoil Reduction 2 Item Schematics ----------------- None Robot Schematics ------------------ None Fabricated ------------ Nothing Alien Tech Used ----------------- None Achievements -------------- None Challenges ------------ None Game ------ Seed GyrokineticAntigravBattery Manual? 0 Play Time 00:18:15 Cumulative 13.2 hours Start 2024.05.28 @ 00:00:24 End 2024.05.28 @ 00:38:41 Sessions 1 Manual Loads 0 Difficulty Rogue Special Mode None Game No. 17 Rogue 5 Adventurer 12 Explorer 0 Win Type - Total 0 Types 0/0/0/0/0/0/0/0/0 Lore% 17 Gallery% 19 Achievement% 15 Wizard Run 0 Options --------- Layout 1 ASCII 0 Keyboard 0 Movement Mouse Keybinds 0 Fullscreen 2 Font 24/Smallcaps Map View 50x35 Zoom Use 0% Tactical HUD 1 Map Filters NONE Filters NONE Steam 1 RUN: 88cf5bcd-92fe-4666-9f79-0119aa565afb